bitfinex-derivatives/quotes_SOLF0:USTF0_20220108
["timestamp","ask_amount","ask_price","bid_price","bid_amount"]
[1641675964850,12.3,139.6,139.53,27.66479]
[1641675965052,4.0,139.59,139.51,27.66479]
[1641675965353,11.16563362,139.59,139.47,1.791]
[1641675965549,4.0,139.58,139.46,10.92]
[1641675965750,11.1664039,139.58,139.47,1.791]
[1641675965953,7.1664039,139.58,139.46,10.92]
[1641675966152,27.66479,139.57,139.47,5.86358598]
[1641675966352,27.66479,139.57,139.47,4.07258598]
[1641675966752,77.42310684,139.61,139.48,4.07258598]
[1641675966954,7.16281069,139.65,139.49,8.95381069]
[1641675967155,7.16281069,139.65,139.57,4.0]
[1641675967354,7.16281069,139.65,139.54,1.79]
[1641675967954,4.0,139.65,139.54,1.79]
[1641675968154,31.66479,139.66,139.54,29.45479]
[1641675968354,4.0,139.65,139.55,4.07091327]
[1641675968555,27.66479,139.66,139.55,4.07091327]
[1641675968754,63.9571,139.67,139.55,11.36091327]
[1641675969054,63.9571,139.67,139.56,4.07091327]
[1641675969256,67.9571,139.67,139.56,4.07091327]
[1641675969456,63.9571,139.67,139.56,4.07091327]
[1641675969655,67.9571,139.67,139.56,4.07091327]
[1641675969855,63.9571,139.67,139.56,4.07091327]
[1641675970457,4.0,139.65,139.56,4.07091327]
[1641675970658,7.16332378,139.64,139.56,4.07091327]
[1641675970858,7.16332378,139.64,139.54,27.66479]
[1641675972360,4.0,139.66,139.54,27.66479]
[1641675972560,63.9571,139.67,139.54,35.49479]
[1641675973061,7.15998998,139.7,139.59,4.0]
[1641675973267,7.15998998,139.7,139.6,1.79]
[1641675973660,7.15998998,139.7,139.6,5.79]
[1641675973861,7.15998998,139.7,139.6,1.79]
[1641675974262,7.16050267,139.69,139.6,1.79]
[1641675974465,4.0,139.68,139.55,1.79]
[1641675974661,18.86250267,139.69,139.54,34.82529267]
[1641675975061,4.0,139.68,139.54,34.82529267]
[1641675975264,4.0,139.67,139.55,5.86078412]
[1641675975764,4.0,139.67,139.56,4.07078412]
[1641675976163,27.66479,139.64,139.54,36.61529267]
[1641675976364,27.66479,139.64,139.58,4.0]
[1641675976564,27.66479,139.64,139.59,1.79]
[1641675976763,27.66479,139.7,139.59,1.79]
[1641675976966,27.66479,139.7,139.58,1.79]
[1641675977264,46.02403631,139.7,139.58,1.79]
[1641675977564,11.16101543,139.68,139.55,1.79]
[1641675977763,7.16101543,139.68,139.56,4.0]
[1641675977968,7.16101543,139.68,139.55,1.79]
[1641675978165,27.66479,139.66,139.55,1.79]
[1641675978564,31.66479,139.66,139.54,29.45479]
[1641675978763,27.66479,139.66,139.54,29.45479]
[1641675978965,11.16383695,139.63,139.54,1.79]
[1641675979165,16.87683695,139.63,139.51,27.66479]
[1641675979465,7.1653769,139.6,139.49,4.0]
[1641675979667,13.4253769,139.6,139.49,4.0]
[1641675980367,27.66479,139.58,139.5,4.07206982]
[1641675980767,7.16743119,139.56,139.5,4.07206982]
[1641675980967,4.0,139.55,139.5,4.07206982]
[1641675981168,13.54943119,139.56,139.49,4.07206982]
[1641675981467,4.0,139.55,139.49,4.07206982]
[1641675981667,4.0,139.54,139.47,4.07206982]
[1641675981869,13.54943119,139.56,139.47,4.07206982]
[1641675981870,4.0,139.55,139.47,4.07206982]
[1641675982068,4.0,139.55,139.44,4.07206982]
[1641675982271,27.66479,139.53,139.44,4.07206982]
[1641675982470,27.66479,139.53,139.43,31.73685982]
[1641675982769,132.329,139.57,139.45,1.792]
[1641675982969,132.329,139.57,139.44,5.86306982]
[1641675983170,4.0,139.56,139.44,5.86306982]
[1641675983370,4.0,139.55,139.44,5.86306982]
[1641675983570,7.699,139.55,139.45,4.07206982]
[1641675983770,7.699,139.55,139.45,19.24414484]
[1641675984170,27.66479,139.52,139.45,15.17207502]
[1641675984370,7.16974368,139.51,139.45,15.17207502]
[1641675984970,7.16974368,139.51,139.43,15.17207502]
[1641675985171,4.0,139.5,139.43,15.17207502]
[1641675985371,7.17154332,139.48,139.43,15.17207502]
[1641675985571,12.84754332,139.48,139.43,15.17207502]
[1641675985871,12.84754332,139.48,139.4,39.92400145]
[1641675986070,5.676,139.48,139.44,8.07201888]
[1641675986271,15.17207502,139.55,139.45,29.45679]
[1641675986472,15.17207502,139.55,139.45,33.52880888]
[1641675986672,7.16922967,139.52,139.45,4.07201888]
[1641675987072,7.16922967,139.52,139.47,15.17207502]
[1641675987273,32.67691866,139.55,139.47,15.17207502]
[1641675987274,7.16871572,139.53,139.47,15.17207502]
[1641675987473,7.16871572,139.53,139.48,4.07201888]
[1641675987872,4.0,139.53,139.48,4.07201888]
[1641675988072,7.16974368,139.51,139.48,4.07201888]
[1641675988273,27.66479,139.49,139.48,4.07201888]
[1641675988477,27.66479,139.49,139.43,27.66479]
[1641675988874,27.66479,139.49,139.44,4.07275729]
[1641675989875,31.66479,139.49,139.44,4.07275729]
[1641675990074,27.66479,139.49,139.44,4.07275729]
[1641675990274,31.66479,139.49,139.44,4.07275729]
[1641675990474,4.0,139.48,139.44,4.07275729]
[1641675990673,19.65528617,139.48,139.44,4.07275729]
[1641675990873,19.65554332,139.48,139.43,27.66479]
[1641675991073,19.65554332,139.48,139.4,42.83686502]
[1641675991074,4.0,139.44,139.39,15.17207502]
[1641675991275,11.002,139.44,139.39,15.17207502]
[1641675991774,7.002,139.44,139.35,15.17207502]
[1641675991974,7.002,139.44,139.36,1.793]
[1641675992574,7.002,139.44,139.37,3.85265659]
[1641675993174,27.66479,139.45,139.38,15.17207502]
[1641675993574,31.66479,139.45,139.38,2.7803592]
[1641675993777,27.66479,139.45,139.38,2.7803592]
[1641675993976,27.66479,139.45,139.39,3.85265659]
[1641675994177,27.66479,139.4,139.39,3.85265659]
[1641675994578,33.65279,139.4,139.39,3.85265659]
[1641675994980,37.65279,139.4,139.38,3.85265659]
[1641675995179,4.0,139.39,139.35,15.17207502]
[1641675995378,7.1764326,139.38,139.33,15.17207502]
[1641675995578,7.1772052,139.37,139.33,15.17207502]
[1641675995778,13.1212052,139.37,139.33,15.17207502]
[1641675996179,27.66479,139.34,139.33,15.17207502]
[1641675996379,27.66479,139.34,139.29,15.89169508]
[1641675996578,27.66479,139.34,139.27,15.17207502]
[1641675997480,27.66479,139.34,139.29,15.17207502]
[1641675998079,27.66479,139.35,139.28,15.17207502]
[1641675998279,27.66479,139.35,139.29,1.794]
[1641675999581,27.66479,139.35,139.28,15.17207502]
[1641676000382,27.66479,139.35,139.27,15.17207502]
[1641676000781,4.0,139.33,139.27,15.17207502]
[1641676001181,11.17926628,139.33,139.27,15.17207502]
[1641676001381,4.0,139.32,139.27,15.17207502]
[1641676001582,4.0,139.3,139.27,15.17207502]
[1641676001782,11.18055506,139.3,139.27,15.17207502]
[1641676001981,4.0,139.29,139.27,7.502e-05]
[1641676002181,34.92479,139.29,139.24,10.77567636]
[1641676002381,34.92479,139.29,139.23,55.81569653]
[1641676002382,34.92479,139.29,139.2,1.795]
[1641676002780,26.77060449,139.29,139.2,1.795]
[1641676003481,26.77060449,139.29,139.2,12.57067636]
[1641676003682,26.77060449,139.29,139.2,10.77567636]
[1641676003882,33.26860449,139.29,139.2,10.77567636]
[1641676004884,37.26860449,139.29,139.2,10.77567636]
[1641676005086,33.26860449,139.29,139.2,10.77567636]
[1641676005985,33.26860449,139.29,139.19,39.92400145]
[1641676006184,33.26860449,139.29,139.2,1.795]
[1641676006985,33.26860449,139.29,139.19,1.795]
[1641676007386,26.77060449,139.29,139.2,4.0]
[1641676007587,7.17797796,139.35,139.21,5.795]
[1641676007787,7.17797796,139.35,139.21,1.795]
[1641676008389,27.66479,139.33,139.21,29.45979]
[1641676008790,7.18003949,139.31,139.21,69.38379145]
[1641676008990,7.18003949,139.31,139.21,67.58879145]
[1641676009789,7.18003949,139.31,139.21,38.44046636]
[1641676010292,27.66479,139.3,139.21,38.44046636]
[1641676010489,69.3374,139.4,139.29,4.0]
[1641676010789,67.8996,139.44,139.3,7.17282932]
[1641676010989,67.8996,139.44,139.3,8.96582932]
[1641676010990,5.02962954,139.42,139.3,8.96582932]
[1641676011792,63.8996,139.44,139.31,9.89581488]
[1641676011991,132.1972,139.48,139.34,7.17077193]
[1641676012194,132.1972,139.48,139.35,1.793]
[1641676012390,27.66479,139.47,139.36,27.66479]
[1641676012692,27.66479,139.47,139.37,2.72350002]
[1641676013191,27.66479,139.47,139.39,4.0]
[1641676013392,27.66479,139.49,139.4,4.0]
[1641676013594,5.02962954,139.55,139.4,8.623]
[1641676013793,5.02962954,139.57,139.47,7.16409356]
[1641676013992,5.02962954,139.57,139.47,15.53809356]
[1641676014192,5.02962954,139.57,139.48,2.72350002]
[1641676014393,32.69441954,139.57,139.49,1.791]
[1641676015392,5.02962954,139.57,139.49,1.791]
[1641676015594,34.82991019,139.6,139.5,2.72350002]
[1641676015792,12.19244023,139.65,139.55,4.0]
[1641676015992,5.02962954,139.65,139.55,5.667]
[1641676016394,27.66479,139.66,139.56,1.79]
[1641676016595,27.66479,139.66,139.55,33.33179]
[1641676017297,27.66479,139.66,139.58,4.0]
[1641676017498,8.19391897,139.65,139.6,4.0]
[1641676017696,8.19391897,139.65,139.61,1.79]
[1641676017901,8.19391897,139.67,139.61,13.16750002]
[1641676018098,8.19391897,139.67,139.61,11.37750002]
[1641676018398,55.32958,139.62,139.59,1.79]
[1641676018597,55.32958,139.62,139.5,34.82708767]
[1641676018598,7.1653769,139.6,139.51,1.79]
[1641676018797,60.87158,139.62,139.51,1.79]
[1641676018997,8.19391897,139.61,139.5,27.66479]
[1641676019197,8.19391897,139.61,139.52,4.0]
[1641676019397,27.66479,139.62,139.53,1.791]
[1641676019597,27.66479,139.62,139.53,5.791]
[1641676019996,27.66479,139.62,139.57,4.0]
[1641676020196,7.16101543,139.68,139.57,4.0]
[1641676020400,27.66479,139.63,139.61,4.0]
[1641676020600,27.66479,139.63,139.61,8.812]
[1641676020802,8.19233728,139.67,139.61,8.812]
[1641676020999,8.19233728,139.67,139.62,1.79]
[1641676021198,4.0,139.69,139.58,1.79]
[1641676021498,7.16178472,139.67,139.56,27.66479]
[1641676021698,16.02578472,139.67,139.55,1.79]
[1641676021899,11.16332378,139.64,139.54,67.7245]
[1641676022099,15.23732378,139.64,139.5,29.45479]
[1641676022398,27.66479,139.62,139.5,31.66479]
[1641676022599,27.66479,139.62,139.51,1.791]
[1641676022800,8.19233728,139.61,139.51,1.791]
[1641676023301,64.2475,139.67,139.55,4.0]
[1641676023498,64.2475,139.67,139.56,1.79]
[1641676023700,64.2475,139.67,139.56,8.953]
[1641676024099,7.16255417,139.65,139.56,7.163]
[1641676024503,8.1940911,139.64,139.57,27.66479]
[1641676024700,8.1940911,139.64,139.56,7.163]
[1641676026505,27.66479,139.62,139.56,7.163]
[1641676026705,27.66479,139.62,139.56,8.953]
[1641676027005,27.66479,139.62,139.56,1.79]
[1641676027205,27.66479,139.62,139.52,8.95152827]
[1641676027405,4.0,139.56,139.5,1.791]
[1641676027605,5.541,139.56,139.5,1.791]
[1641676028005,5.541,139.56,139.47,7.16409356]
[1641676028205,5.541,139.56,139.44,5.791]
[1641676028407,27.66479,139.53,139.45,29.45679]
[1641676028805,7.1653769,139.6,139.46,4.0]
[1641676029005,7.1653769,139.6,139.47,1.791]
[1641676029605,11.1653769,139.6,139.47,1.791]
[1641676029806,4.0,139.56,139.47,1.791]
[1641676030005,4.0,139.54,139.47,1.791]
[1641676030207,11.16845878,139.54,139.47,1.791]
[1641676030406,27.66479,139.48,139.47,1.791]
[1641676030606,27.66479,139.48,139.41,12.272]
[1641676030808,27.66479,139.5,139.44,4.0]
[1641676031009,27.66479,139.5,139.45,1.792]
[1641676031407,27.66479,139.5,139.43,7.16614712]
[1641676031807,27.66479,139.5,139.44,4.0]
[1641676032108,68.756,139.56,139.45,1.792]
[1641676032307,72.756,139.56,139.44,1.792]
[1641676032507,27.66479,139.53,139.44,1.792]
[1641676033209,27.66479,139.53,139.43,7.16614712]
[1641676033708,27.66479,139.53,139.44,2.72030361]
[1641676034511,55.32958,139.53,139.44,2.72030361]
[1641676035413,4.0,139.56,139.44,13.83330361]
[1641676035613,11.16589036,139.59,139.44,9.83330361]
[1641676035814,7.16589036,139.59,139.45,1.791]
[1641676036315,8.197679,139.58,139.46,2.72030361]
[1641676036514,39.862469,139.58,139.46,37.54970045]
[1641676036717,27.66479,139.58,139.46,37.54970045]
[1641676036916,27.66479,139.58,139.47,1.791]
[1641676037115,27.66479,139.58,139.47,4.51130361]
[1641676037715,27.66479,139.58,139.48,2.72030361]
[1641676037915,11.16666069,139.57,139.48,2.72030361]
[1641676038115,4.0,139.56,139.48,2.72030361]
[1641676038314,4.0,139.55,139.48,2.72030361]
[1641676038517,27.66479,139.49,139.44,2.72030361]
[1641676039416,27.66479,139.49,139.43,2.72030361]
[1641676040316,27.66479,139.49,139.44,2.78216592]
[1641676041018,27.66479,139.49,139.45,2.72030361]
[1641676042618,68.153,139.55,139.45,6.72030361]
[1641676042818,68.153,139.55,139.46,1.792]
[1641676043218,68.153,139.55,139.47,17.64306861]
[1641676043421,4.0,139.56,139.47,17.64306861]
[1641676043819,4.0,139.56,139.48,2.72030361]
[1641676044022,11.16589036,139.59,139.48,2.72030361]
[1641676044222,11.16589036,139.59,139.48,8.60130361]
[1641676044520,11.16589036,139.59,139.48,26.31025186]
[1641676044521,27.66479,139.55,139.48,26.31025186]
[1641676044721,27.66479,139.57,139.48,46.31025186]
[1641676044922,139.23902954,139.61,139.51,11.16204118]
[1641676045122,69.57322954,139.61,139.52,1.791]
[1641676045320,5.02962954,139.61,139.52,4.51130361]
[1641676045521,14.922765,139.68,139.55,7.15973366]
[1641676045722,14.922765,139.68,139.56,1.79]
[1641676045921,14.922765,139.68,139.56,4.51030361]
[1641676046122,7.16255417,139.65,139.56,2.72030361]
[1641676046321,4.0,139.64,139.56,2.72030361]
[1641676046526,27.66479,139.6,139.57,2.78618325]
[1641676046725,27.66479,139.6,139.57,17.70894825]
[1641676047127,4.0,139.58,139.57,14.92284825]
[1641676047325,4.0,139.58,139.54,5.1552497]
[1641676047526,4.0,139.57,139.53,26.73961667]
[1641676047726,4.0,139.56,139.47,1.791]
[1641676047929,4.0,139.55,139.47,40.42597312]
[1641676048126,4.0,139.56,139.47,40.42597312]
[1641676048329,4.0,139.56,139.48,2.71980689]
[1641676048529,31.66479,139.55,139.48,2.71980689]
[1641676048928,27.66479,139.55,139.48,2.71980689]
[1641676049127,27.66479,139.55,139.46,2.71980689]
[1641676049928,31.66479,139.55,139.46,2.71980689]
[1641676050125,37.22879,139.55,139.46,2.71980689]
[1641676050327,33.22879,139.55,139.46,2.71980689]
[1641676050526,27.66479,139.51,139.46,2.71980689]
[1641676050727,4.0,139.5,139.46,2.71980689]
[1641676050926,34.93179,139.51,139.46,2.71980689]
[1641676051126,34.93179,139.51,139.45,2.71980689]
[1641676051327,7.267,139.51,139.45,2.71980689]
[1641676052226,4.0,139.49,139.43,2.71980689]
[1641676052426,4.0,139.5,139.43,2.71980689]
[1641676052626,27.66479,139.45,139.41,10.48]
[1641676053628,27.66479,139.45,139.39,26.74130571]
[1641676054029,9e-05,139.45,139.39,26.74130571]
[1641676054228,47.7453769,139.62,139.44,4.0]
[1641676054432,47.7453769,139.62,139.45,1.791]
[1641676054632,4.0,139.59,139.53,27.66479]
[1641676054831,4.0,139.58,139.5,27.66479]
[1641676055030,4.0,139.55,139.5,27.66479]
[1641676055230,8.052,139.55,139.44,7.16435019]
[1641676055433,15.22045878,139.55,139.41,1.792]
[1641676055634,4.0,139.54,139.4,8.95994495]
[1641676055834,12.052,139.55,139.4,8.95994495]
[1641676056037,12.052,139.55,139.4,70.08091813]
[1641676056235,4.0,139.52,139.4,70.08091813]
[1641676056636,4.0,139.53,139.45,27.66479]
[1641676057040,27.66479,139.54,139.45,27.66479]
[1641676057237,4.0,139.52,139.45,27.66479]
[1641676057638,4.0,139.51,139.45,27.66479]
[1641676058039,10.957,139.51,139.45,27.66479]
[1641676058240,4.0,139.5,139.45,27.66479]
[1641676058439,4.0,139.5,139.44,10.79877059]
[1641676058639,4.0,139.47,139.44,10.79877059]
[1641676058839,4.0,139.46,139.44,7.059e-05]
[1641676059440,6.601,139.47,139.44,7.059e-05]
[1641676059941,10.601,139.47,139.44,7.059e-05]
[1641676060139,6.601,139.47,139.44,7.059e-05]
[1641676060343,6.601,139.47,139.39,38.18479]
[1641676061042,6.601,139.47,139.4,4.0]
[1641676061242,6.601,139.47,139.39,38.18479]
[1641676061443,6.601,139.47,139.39,39.97779]
[1641676061644,6.601,139.47,139.4,4.0]
[1641676061842,6.957,139.51,139.4,1.792]
[1641676062046,71.6378,139.53,139.4,1.792]
[1641676062247,71.6378,139.53,139.4,17.76988369]
[1641676062545,4.0,139.52,139.44,27.66479]
[1641676062946,4.0,139.52,139.4,17.76988369]
[1641676063146,4.0,139.52,139.4,15.97788369]
[1641676063345,78.06373585,139.53,139.4,77.09885687]
[1641676063545,70.89424919,139.53,139.41,4.0]
[1641676063746,70.89424919,139.53,139.42,4.0]
[1641676063946,63.49424919,139.53,139.42,7.16717434]
[1641676064347,27.66479,139.54,139.44,4.0]
[1641676064547,27.66479,139.54,139.44,27.66479]
[1641676064750,129.7135,139.58,139.5,4.0]
[1641676064946,129.7135,139.58,139.5,6.631]
[1641676065147,64.1168,139.58,139.5,6.631]
[1641676065348,64.1168,139.58,139.52,4.0]
[1641676065647,76.67722378,139.65,139.51,4.0]
[1641676066047,76.67722378,139.65,139.5,6.631]
[1641676066250,8.19530087,139.64,139.55,4.0]
[1641676066451,8.19530087,139.64,139.56,11.15998998]
[1641676066650,8.19530087,139.64,139.57,27.66479]
[1641676066850,7.16358036,139.65,139.57,27.66479]
[1641676067252,7.16358036,139.65,139.55,27.66479]
[1641676067851,8.19468765,139.64,139.56,2.71837193]
[1641676068052,8.19468765,139.64,139.56,14.30737193]
[1641676068251,8.19468765,139.64,139.58,4.0]
[1641676068452,8.19468765,139.64,139.56,14.30737193]
[1641676068652,8.19468765,139.68,139.59,30.38316193]
[1641676068855,8.19468765,139.68,139.59,10.69537193]
[1641676068856,7.16229767,139.67,139.59,10.69537193]
[1641676069257,7.16229767,139.67,139.6,2.71837193]
[1641676069559,8.19468765,139.66,139.6,2.71837193]
[1641676070257,8.19468765,139.68,139.56,2.71837193]
[1641676070655,8.19468765,139.68,139.58,27.66479]
[1641676071056,8.19468765,139.68,139.59,2.71837193]
[1641676072656,34.82862695,139.64,139.59,2.71837193]
[1641676072856,41.00962695,139.64,139.59,2.71837193]
[1641676073258,8.19468765,139.63,139.56,2.71837193]
[1641676073657,8.19468765,139.63,139.53,2.71837193]
[1641676074059,15.35903784,139.63,139.53,2.71837193]
[1641676074257,15.35903784,139.63,139.51,27.66479]
[1641676074258,7.16563362,139.61,139.52,2.71837193]
[1641676074459,7.1664039,139.59,139.52,2.71837193]
[1641676074659,34.8311939,139.59,139.52,2.71837193]
[1641676074861,27.66479,139.59,139.52,2.71837193]
[1641676075761,6.437,139.61,139.53,4.0]
[1641676075961,98.69468356,139.64,139.53,4.0]
[1641676076161,98.69468356,139.64,139.54,4.0]
[1641676076564,8.19534532,139.63,139.54,2.71837193]
[1641676076863,8.19534532,139.63,139.54,30.38316193]
[1641676077063,15.35969551,139.63,139.52,2.71837193]
[1641676077664,8.19534532,139.62,139.52,2.71837193]
[1641676078365,8.19534532,139.62,139.54,4.0]
[1641676078563,8.19534532,139.62,139.56,4.0]
[1641676078763,20.0,139.77,139.58,4.0]
[1641676078964,67.4385,139.71,139.65,4.0]
[1641676079163,15.12929307,139.7,139.65,11.772]
[1641676079467,15.12929307,139.7,139.65,7.772]
[1641676079964,15.12929307,139.7,139.66,4.06774743]
[1641676080366,15.12929307,139.7,139.64,4.0]
[1641676080565,75.66698377,139.76,139.64,4.0]
[1641676080765,27.66479,139.74,139.63,27.66479]
[1641676080966,96.17409,139.76,139.69,4.0]
[1641676081165,96.17409,139.76,139.69,12.781]
[1641676081166,27.66479,139.76,139.69,12.781]
[1641676081767,27.66479,139.76,139.69,8.781]
[1641676081967,27.66479,139.76,139.7,4.06653971]
[1641676082768,27.66479,139.76,139.68,27.66479]
[1641676083368,27.66479,139.76,139.68,31.66479]
[1641676083568,33.05579,139.76,139.69,4.06655737]
[1641676083767,40.21372994,139.76,139.69,4.06655737]
[1641676084168,40.21372994,139.76,139.64,4.06655737]
[1641676084568,40.21372994,139.76,139.66,4.0]
[1641676084768,40.21372994,139.76,139.67,27.66479]
[1641676084968,33.05579,139.76,139.67,27.66479]
[1641676085169,27.66479,139.76,139.67,27.66479]
[1641676085469,27.66479,139.76,139.68,4.06655737]
[1641676085867,27.66479,139.76,139.68,8.06655737]
[1641676086372,27.66479,139.76,139.69,4.06655737]
[1641676086969,27.66479,139.76,139.64,1.789]
[1641676087168,7.15819613,139.75,139.63,31.66479]
[1641676087370,34.13679,139.76,139.65,4.06760603]
[1641676087670,27.66479,139.76,139.65,8.06760603]
[1641676087869,27.66479,139.76,139.64,4.06760603]
[1641676088669,55.32958,139.76,139.64,4.06760603]
[1641676089370,55.32958,139.76,139.64,8.06760603]
[1641676089670,55.32958,139.76,139.63,27.66479]
[1641676089671,55.32958,139.76,139.65,4.06760603]
[1641676089873,7.15870857,139.74,139.65,4.06760603]
[1641676090272,7.15870857,139.74,139.65,4.0]
[1641676090472,7.15870857,139.74,139.64,8.06760603]
[1641676090674,27.66479,139.73,139.64,4.06760603]
[1641676090973,27.66479,139.73,139.66,4.06760603]
[1641676091375,7.16024631,139.71,139.6,29.45379]
[1641676091574,7.16024631,139.71,139.6,27.66479]
[1641676092374,7.16178472,139.68,139.58,4.0]
[1641676092575,13.34278472,139.68,139.58,4.0]
[1641676092776,27.66479,139.66,139.56,15.12929307]
[1641676092976,7.16486351,139.62,139.59,4.06899594]
[1641676093177,7.1664039,139.6,139.54,25.86655988]
[1641676093474,5.363,139.62,139.54,25.86655988]
[1641676094277,5.363,139.62,139.54,13.51184181]
[1641676094478,67.0454,139.65,139.55,3.95210425]
[1641676094677,27.66479,139.63,139.58,4.0]
[1641676094880,27.66479,139.66,139.58,5.932]
[1641676095478,27.66479,139.66,139.59,3.95210425]
[1641676096379,27.66479,139.66,139.57,3.95210425]
[1641676096579,133.2097,139.7,139.57,7.95210425]
[1641676096779,160.87449,139.7,139.58,27.66479]
[1641676097182,160.87449,139.7,139.58,34.43944285]
[1641676097381,160.87449,139.7,139.59,3.95210425]
[1641676097882,7.16127184,139.69,139.59,3.95210425]
[1641676098782,7.16127184,139.69,139.58,3.95210425]
[1641676099082,14.52527184,139.69,139.58,3.95210425]
[1641676099482,7.364,139.69,139.58,3.95210425]
[1641676099884,7.16435019,139.63,139.56,3.95210425]
[1641676100084,14.71435019,139.63,139.54,15.12929307]
[1641676100689,8.12483875,139.62,139.55,2.73184924]
[1641676100888,27.66479,139.61,139.55,2.73184924]
[1641676101786,27.66479,139.61,139.53,2.73184924]
[1641676101987,7.16435019,139.63,139.54,4.0]
[1641676102186,64.5991,139.65,139.54,4.0]
[1641676102388,64.5991,139.65,139.53,9.75984924]
[1641676102587,8.12173088,139.64,139.53,9.75984924]
[1641676102785,8.12173088,139.64,139.55,2.73184924]
[1641676103187,8.12173088,139.64,139.54,5.50700363]
[1641676103588,8.12173088,139.64,139.55,2.73184924]
[1641676103990,7.16435019,139.63,139.55,5.50700363]
[1641676104589,8.12173088,139.62,139.56,2.73184924]
[1641676105488,8.12173088,139.62,139.54,2.73184924]
[1641676106089,8.12173088,139.62,139.57,4.0]
[1641676106290,8.12173088,139.62,139.54,6.73184924]
[1641676106489,69.64294256,139.65,139.54,6.73184924]
[1641676106689,69.64294256,139.65,139.57,4.0]
[1641676106890,5.04384256,139.65,139.57,27.66479]
[1641676107291,27.66479,139.67,139.58,5.50835177]
[1641676107890,8.12061102,139.66,139.59,2.73184924]
[1641676108190,7.16435019,139.63,139.59,2.73184924]
[1641676108392,6.88,139.63,139.55,15.12929307]
[1641676108792,27.66479,139.61,139.56,2.73196926]
[1641676109693,27.66479,139.61,139.55,2.73196926]
[1641676110795,27.66479,139.61,139.52,2.73196926]
[1641676111695,27.66479,139.61,139.53,2.77800116]
[1641676112098,27.66479,139.61,139.54,2.73196926]
[1641676113699,27.66479,139.62,139.54,2.73196926]
[1641676113897,27.66479,139.62,139.54,6.73196926]
[1641676114099,27.66479,139.62,139.54,4.0]
[1641676114298,27.66479,139.62,139.55,2.77991906]
[1641676114498,27.66479,139.62,139.55,5.51188832]
[1641676114897,27.66479,139.62,139.56,2.73196926]
[1641676115099,27.66479,139.62,139.56,5.51188832]
[1641676115499,27.66479,139.62,139.57,2.73196926]
[1641676116303,27.66479,139.62,139.54,2.73196926]
[1641676116801,27.66479,139.62,139.53,6.73196926]
[1641676117002,27.66479,139.62,139.53,21.86126233]
[1641676117303,27.66479,139.62,139.54,2.73196926]
[1641676117703,27.66479,139.62,139.54,5.51552368]
[1641676118302,27.66479,139.62,139.55,2.73196926]
[1641676118502,27.66479,139.62,139.55,5.51552368]
[1641676118904,55.32958,139.62,139.55,5.51552368]
[1641676119202,27.16589036,139.6,139.55,5.51552368]
[1641676119403,7.16794495,139.56,139.52,10.78038077]
[1641676119603,13.03594495,139.56,139.52,10.78038077]
[1641676119803,13.03594495,139.56,139.54,15.18618919]
[1641676120205,13.03594495,139.56,139.52,10.78038077]
[1641676120603,13.03594495,139.56,139.47,65.12097318]
[1641676120803,7.16897269,139.54,139.47,55.12097318]
[1641676121004,27.66479,139.49,139.46,10.80566106]
[1641676121203,35.17179,139.49,139.46,10.80566106]
[1641676122204,35.17179,139.49,139.43,4.0]
[1641676122404,35.17179,139.49,139.39,38.26479]
[1641676122904,35.17179,139.49,139.42,4.0]
[1641676123104,35.17179,139.49,139.4,2.53134105]
[1641676123505,35.17179,139.49,139.43,2.53134105]
[1641676123705,27.0262653,139.49,139.43,2.53134105]
[1641676123905,27.0262653,139.49,139.41,2.53134105]
[1641676124507,27.0262653,139.49,139.39,4.0]
[1641676124905,27.0262653,139.49,139.4,2.53134105]
[1641676125107,7.17231486,139.48,139.4,2.53134105]
[1641676125311,7.17231486,139.48,139.42,4.0]
[1641676126007,7.17231486,139.48,139.43,2.53134105]
[1641676126410,19.5192653,139.49,139.44,2.53134105]
[1641676126810,19.5192653,139.49,139.45,2.53134105]
[1641676127208,27.66479,139.51,139.46,2.53134105]